bitfinex/quotes_BTCUSD_20240905
["timestamp","ask_amount","ask_price","bid_price","bid_amount"]
[1725527191704,1.82274847,57042.0,57041.0,2.79338687]
[1725527191911,1.82435416,57042.0,57041.0,2.79308687]
[1725527192120,1.82435416,57042.0,57041.0,2.71076335]
[1725527192324,1.82435416,57042.0,57041.0,2.72722332]
[1725527192735,1.82535416,57042.0,57041.0,2.73102332]
[1725527192965,1.82535416,57042.0,57041.0,2.73062332]
[1725527193399,1.82535416,57042.0,57041.0,2.73052332]
[1725527193607,1.82535416,57042.0,57041.0,2.36197099]
[1725527193816,1.82535416,57042.0,57041.0,2.34850315]
[1725527194293,1.82535416,57042.0,57041.0,2.40070484]
[1725527194511,1.82535416,57042.0,57041.0,2.75132884]
[1725527194947,1.82535416,57042.0,57041.0,2.40070484]
[1725527195382,1.82535416,57042.0,57041.0,2.75132884]
[1725527195600,1.82535416,57042.0,57041.0,2.40070484]
[1725527196673,1.82616916,57042.0,57041.0,2.40070484]
[1725527197359,1.82590396,57042.0,57041.0,2.40070484]
[1725527197857,1.82590396,57042.0,57041.0,2.3019732]
[1725527198365,1.82981092,57042.0,57041.0,2.3019732]
[1725527198605,1.82981092,57042.0,57041.0,2.30197038]
[1725527200124,1.82981092,57042.0,57041.0,2.71557151]
[1725527200361,1.82981092,57042.0,57041.0,2.52077151]
[1725527200606,1.82981092,57042.0,57041.0,2.17014751]
[1725527201987,1.82981092,57042.0,57041.0,2.52077151]
[1725527202984,1.82981092,57042.0,57041.0,2.61950315]
[1725527203189,1.82981092,57042.0,57041.0,2.96550483]
[1725527203427,1.82981092,57042.0,57041.0,2.9688108]
[1725527203664,1.82981092,57042.0,57041.0,2.90336719]
[1725527203911,1.82981092,57042.0,57041.0,2.98198401]
[1725527204147,1.82981092,57042.0,57041.0,2.94235493]
[1725527204396,1.82981092,57042.0,57041.0,2.84362329]
[1725527204628,1.82981092,57042.0,57041.0,2.49299929]
[1725527205132,1.82981092,57042.0,57041.0,2.23887151]
[1725527205742,1.82981092,57042.0,57041.0,2.10719358]
[1725527206359,1.82981092,57042.0,57041.0,2.05477151]
[1725527206714,1.82981092,57042.0,57041.0,2.10719521]
[1725527206952,1.83085846,57042.0,57041.0,2.10719521]
[1725527207411,1.83085846,57042.0,57041.0,2.08440194]
[1725527208347,1.83085846,57042.0,57041.0,2.25940203]
[1725527208556,1.83085846,57042.0,57041.0,2.62901885]
[1725527209034,1.83085846,57042.0,57041.0,2.62901866]
[1725527209597,1.83085846,57042.0,57041.0,2.55040184]
[1725527209693,1.83085846,57042.0,57041.0,2.65521796]
[1725527210655,1.83085846,57042.0,57041.0,3.00584196]
[1725527210884,1.83085846,57042.0,57041.0,2.43502584]
[1725527211128,1.83085846,57042.0,57041.0,2.566046]
[1725527212108,1.83085846,57042.0,57041.0,2.55287688]
[1725527212340,1.83085846,57042.0,57041.0,2.40539551]
[1725527212570,1.83085846,57042.0,57041.0,2.42185572]
[1725527213022,1.83085846,57042.0,57041.0,2.52058736]
[1725527214649,1.83085846,57042.0,57041.0,2.65175588]
[1725527215504,1.83085846,57042.0,57041.0,2.52058736]
[1725527215717,1.83085846,57042.0,57041.0,2.50412715]
[1725527215937,1.83085846,57042.0,57041.0,2.52058774]
[1725527216144,1.83085846,57042.0,57041.0,2.4218561]
[1725527216356,1.83085846,57042.0,57041.0,2.8878561]
[1725527218220,1.83085846,57042.0,57041.0,2.98658774]
[1725527218431,1.83085846,57042.0,57041.0,2.52058774]
[1725527219041,1.83085846,57042.0,57041.0,2.52058736]
[1725527220552,1.83085846,57042.0,57041.0,3.40814651]
[1725527220789,1.83085846,57042.0,57041.0,3.73152232]
[1725527220790,1.83194178,57042.0,57041.0,3.73152232]
[1725527221045,1.83194178,57042.0,57041.0,8.92276941]
[1725527221253,1.16068848,57042.0,57041.0,10.52989941]
[1725527221465,1.15304497,57042.0,57041.0,9.5296487]
[1725527221696,1.15204497,57042.0,57041.0,9.8662727]
[1725527221918,1.15304497,57042.0,57041.0,9.88027172]
[1725527222382,1.15204497,57042.0,57041.0,9.76754008]
[1725527222601,1.14977464,57042.0,57041.0,9.76354008]
[1725527222826,1.15077464,57042.0,57041.0,9.77754008]
[1725527223043,1.15177464,57042.0,57041.0,9.79154008]
[1725527223256,1.15077464,57042.0,57041.0,9.77754008]
[1725527223738,1.15177464,57042.0,57041.0,9.89027172]
[1725527224421,1.15177464,57042.0,57041.0,9.87381611]
[1725527224644,0.89656702,57042.0,57041.0,9.89027155]
[1725527225719,0.86150502,57042.0,57041.0,9.89027155]
[1725527226354,0.68319502,57042.0,57041.0,10.24089555]
[1725527226718,0.61307102,57042.0,57041.0,10.24089555]
[1725527227071,0.50788502,57042.0,57041.0,10.24089555]
[1725527227295,2.2906,57044.0,57041.0,10.24089555]
[1725527227296,2.16229372,57044.0,57043.0,2.57308285]
[1725527227516,2.14402518,57044.0,57043.0,7.44269001]
[1725527227733,2.08249763,57044.0,57043.0,12.49269001]
[1725527227973,2.00378118,57044.0,57043.0,12.49269001]
[1725527228190,1.96872018,57044.0,57043.0,12.84330201]
[1725527228405,1.96872018,57044.0,57043.0,12.94203365]
[1725527228859,1.96872018,57044.0,57043.0,12.95603365]
[1725527228860,1.89859818,57044.0,57043.0,12.95603365]
[1725527229072,1.82847618,57044.0,57043.0,12.97003365]
[1725527229285,1.79441518,57044.0,57043.0,12.97003365]
[1725527229747,1.79441518,57044.0,57043.0,12.61942165]
[1725527229979,1.79441518,57044.0,57043.0,12.60542165]
[1725527229980,1.65317118,57044.0,57043.0,12.60542165]
[1725527230227,1.61811018,57044.0,57043.0,12.50669001]
[1725527230443,1.61911018,57044.0,57043.0,12.52069001]
[1725527230657,1.61911018,57044.0,57043.0,12.50423457]
[1725527230870,1.61911018,57044.0,57043.0,12.52068845]
[1725527231087,1.58404918,57044.0,57043.0,12.7673608]
[1725527231300,1.58404918,57044.0,57043.0,12.7533608]
[1725527231543,1.58404918,57044.0,57043.0,12.7673608]
[1725527232614,1.58404918,57044.0,57043.0,11.90626209]
[1725527233088,1.58486418,57044.0,57043.0,15.35163365]
[1725527234229,1.58486418,57044.0,57043.0,15.35163375]
[1725527235073,1.58486418,57044.0,57043.0,15.5087923]
[1725527235290,1.58486418,57044.0,57043.0,15.35163375]
[1725527236369,1.58486418,57044.0,57043.0,15.5087555]
[1725527237252,1.58486418,57044.0,57043.0,15.35163384]
[1725527238171,1.58486418,57044.0,57043.0,15.57892464]
[1725527238636,1.58486418,57044.0,57043.0,15.42183184]
[1725527238900,1.58486418,57044.0,57043.0,15.42183191]
[1725527239133,1.58486418,57044.0,57043.0,15.07121991]
[1725527239364,1.58486418,57044.0,57043.0,13.94521991]
[1725527239592,1.58486418,57044.0,57043.0,14.10230087]
[1725527239837,1.58486418,57044.0,57043.0,14.29583191]
[1725527240074,1.58386418,57044.0,57043.0,14.25137777]
[1725527240555,1.58486418,57044.0,57043.0,8.9378669]
[1725527240816,1.58486418,57044.0,57043.0,5.91579534]
[1725527241044,1.59633672,57044.0,57043.0,6.07288001]
[1725527241264,1.58486418,57044.0,57043.0,6.07288001]
[1725527241751,1.58486418,57044.0,57043.0,6.09588001]
[1725527242445,1.59633672,57044.0,57043.0,6.03879534]
[1725527243748,1.59071064,57044.0,57043.0,6.03879534]
[1725527245344,1.59071064,57044.0,57043.0,6.19590658]
[1725527245585,1.32569618,57044.0,57043.0,6.66773649]
[1725527245807,1.90169618,57044.0,57043.0,7.26656287]
[1725527246025,1.90169618,57044.0,57043.0,6.269575]
[1725527246257,1.90169618,57044.0,57043.0,6.249575]
[1725527246484,1.90169618,57044.0,57043.0,2.46538038]
[1725527246737,1.90169618,57044.0,57043.0,1.54738038]
[1725527246738,1.90069618,57044.0,57043.0,1.54738038]
[1725527246977,1.90069618,57044.0,57043.0,1.51692485]
[1725527247232,1.90069618,57044.0,57043.0,1.178596]
[1725527247445,2.14736853,57044.0,57043.0,1.00500685]
[1725527247654,2.14836853,57044.0,57043.0,1.18031285]
[1725527248136,2.14836853,57044.0,57043.0,1.29431285]
[1725527248570,2.14836853,57044.0,57043.0,1.63092485]
[1725527248780,2.14836853,57044.0,57043.0,1.64492485]
[1725527248988,2.14736853,57044.0,57043.0,1.63092485]
[1725527249237,2.14836853,57044.0,57043.0,1.64492485]
[1725527249451,2.14736853,57044.0,57043.0,1.63092485]
[1725527249658,2.14736853,57044.0,57043.0,1.28031285]
[1725527249842,2.14836853,57044.0,57043.0,1.29431285]
[1725527250720,2.14836853,57044.0,57043.0,0.44431285]
[1725527250932,2.14836853,57044.0,57043.0,1.29431285]
[1725527254844,1.90169618,57044.0,57043.0,1.99553685]
[1725527257812,1.60095431,57044.0,57043.0,1.99553685]
[1725527258510,1.60095431,57044.0,57043.0,2.04793739]
[1725527259210,1.60095431,57044.0,57043.0,1.99553685]
[1725527259476,1.60095431,57044.0,57043.0,2.04793739]
[1725527260455,1.60095431,57044.0,57043.0,1.99553685]
[1725527260672,1.60095431,57044.0,57043.0,2.04793739]
[1725527262904,1.60095431,57044.0,57043.0,1.99553685]
[1725527265982,1.60095431,57044.0,57043.0,2.34614885]
[1725527266162,1.60095431,57044.0,57043.0,2.29614885]
[1725527267643,1.60095431,57044.0,57043.0,2.37475341]
[1725527267881,1.60095431,57044.0,57043.0,2.29614885]
[1725527268322,1.60095431,57044.0,57043.0,2.34614885]
[1725527268532,1.60095431,57044.0,57043.0,2.04794376]
[1725527268765,1.60095431,57044.0,57043.0,1.64492485]
[1725527268981,1.60095431,57044.0,57043.0,1.99553685]
[1725527270112,1.60095431,57044.0,57043.0,2.34614885]
[1725527270322,1.41935431,57044.0,57043.0,2.54812039]
[1725527270535,1.41935431,57044.0,57043.0,2.65292648]
[1725527270752,1.41935431,57044.0,57043.0,2.54812039]
[1725527271476,1.41935431,57044.0,57043.0,2.65291883]
[1725527271688,1.41935431,57044.0,57043.0,2.54811892]
[1725527271906,1.41935431,57044.0,57043.0,2.65291884]
[1725527272321,1.41935431,57044.0,57043.0,2.54811892]
[1725527272753,1.41935431,57044.0,57043.0,2.65292512]
[1725527273175,1.41935431,57044.0,57043.0,2.54811892]
[1725527273615,1.41935431,57044.0,57043.0,2.53165981]
[1725527273851,1.02495431,57044.0,57043.0,2.89873067]
[1725527274063,1.02495431,57044.0,57043.0,3.02973842]
[1725527274279,1.02495431,57044.0,57043.0,2.89873067]
[1725527274715,1.02495431,57044.0,57043.0,2.88473067]
[1725527274965,1.02495431,57044.0,57043.0,2.86827181]
[1725527275183,1.02495431,57044.0,57043.0,2.88227181]
[1725527275604,1.02495431,57044.0,57043.0,2.88473014]
[1725527276057,1.02395431,57044.0,57043.0,2.88473014]
[1725527276350,1.02395431,57044.0,57043.0,2.89873014]
[1725527276565,1.02395431,57044.0,57043.0,1.21046518]
[1725527276566,1.59605431,57044.0,57043.0,1.21046518]
[1725527276777,1.59605431,57044.0,57043.0,1.08790082]
[1725527277006,1.59605431,57044.0,57043.0,1.03546518]
[1725527278493,1.59605431,57044.0,57043.0,1.03546815]
[1725527279350,1.59605431,57044.0,57043.0,1.10107283]
[1725527279562,1.59605431,57044.0,57043.0,1.07144249]
[1725527279765,1.59605431,57044.0,57043.0,1.08790379]
[1725527279980,1.59605431,57044.0,57043.0,1.07144249]
[1725527280192,1.59605431,57044.0,57043.0,1.08790379]
[1725527280414,1.59605431,57044.0,57043.0,1.07144249]
[1725527280624,1.59605431,57044.0,57043.0,1.08790379]
[1725527280834,1.77135731,57044.0,57043.0,1.07144249]
[1725527281288,1.77135731,57044.0,57043.0,1.0714709]
[1725527281511,2.12196331,57044.0,57043.0,1.0714709]
[1725527281737,1.77135731,57044.0,57043.0,1.08793222]
[1725527282133,1.77135731,57044.0,57043.0,1.01900685]
[1725527282628,2.12196331,57044.0,57043.0,1.01900685]
[1725527283065,2.12196331,57044.0,57043.0,1.07148935]
[1725527283277,1.77135731,57044.0,57043.0,1.01900685]
[1725527283491,2.12196331,57044.0,57043.0,1.01900685]
[1725527284228,2.47256931,57044.0,57043.0,1.09770292]
[1725527284464,2.47256931,57044.0,57043.0,1.01900685]
[1725527285308,2.82317531,57044.0,57043.0,1.00329]
[1725527285553,2.82317531,57044.0,57043.0,1.01900685]
[1725527286162,2.82317531,57044.0,57043.0,0.99100685]
[1725527286383,2.82317531,57044.0,57043.0,1.01900685]
[1725527287235,2.47256931,57044.0,57043.0,1.07152353]
[1725527288336,2.47387368,57044.0,57043.0,1.07152353]
[1725527288548,2.47387368,57044.0,57043.0,1.07102353]
[1725527289919,2.57262753,57044.0,57043.0,1.07102353]
[1725527290122,2.57262753,57044.0,57043.0,1.01850685]
[1725527293288,2.22202153,57044.0,57043.0,1.01850685]
[1725527293490,1.77266168,57044.0,57043.0,1.01850685]
[1725527293871,2.12326768,57044.0,57043.0,1.0973397]
[1725527294521,2.22202153,57044.0,57043.0,1.0973397]
[1725527295382,2.22202153,57044.0,57043.0,1.01850685]
[1725527296008,2.12326768,57044.0,57043.0,1.01850685]
[1725527296225,2.37014838,57044.0,57043.0,1.01850685]
[1725527301769,2.37014838,57044.0,57043.0,1.07105806]
[1725527303522,2.12326768,57044.0,57043.0,1.07105806]
[1725527303737,2.37014838,57044.0,57043.0,1.07105806]
[1725527310788,2.37683748,57044.0,57043.0,1.07105806]
[1725527311019,2.37683748,57044.0,57043.0,1.07105501]
[1725527311237,2.37197322,57044.0,57043.0,1.07105501]
[1725527311451,2.37683841,57044.0,57043.0,1.0710568]
[1725527312184,2.37683841,57044.0,57043.0,1.01850685]
[1725527314603,2.3690541,57044.0,57043.0,1.01850685]
[1725527314815,1.7715674,57044.0,57043.0,1.01850685]
[1725527315717,2.0184481,57044.0,57043.0,1.01850685]
[1725527315930,2.3690541,57044.0,57043.0,1.01850685]
[1725527316148,1.87031611,57044.0,57043.0,1.01850685]
[1725527316774,2.22092211,57044.0,57043.0,1.01850685]
[1725527316974,1.87031611,57044.0,57043.0,1.01850685]
[1725527317250,1.87031611,57044.0,57043.0,1.09734894]
[1725527317883,1.87031611,57044.0,57043.0,1.11381136]
[1725527319006,1.87031611,57044.0,57043.0,1.09734894]
[1725527319217,1.87031611,57044.0,57043.0,1.01850685]
[1725527319440,1.87031611,57044.0,57043.0,1.03496927]
[1725527321320,1.87031611,57044.0,57043.0,1.14009205]
[1725527322277,1.87031611,57044.0,57043.0,1.14991033]
[1725527322532,1.87031611,57044.0,57043.0,1.16637275]
[1725527323649,2.22092211,57044.0,57043.0,1.14991033]
[1725527323873,2.22092211,57044.0,57043.0,1.15012549]
[1725527326606,1.93188318,57044.0,57043.0,1.01850685]
[1725527328477,1.93188318,57044.0,57043.0,1.12381646]
[1725527330746,1.93188318,57044.0,57043.0,1.14027887]
[1725527331093,1.93188318,57044.0,57043.0,1.12381646]
[1725527331689,1.93188318,57044.0,57043.0,1.14027887]
[1725527332111,1.93188318,57044.0,57043.0,1.12381646]
[1725527332534,1.93188318,57044.0,57043.0,1.14027883]
[1725527332965,1.93188318,57044.0,57043.0,1.03496922]
[1725527334903,1.58127718,57044.0,57043.0,1.03496922]
[1725527338865,1.58127718,57044.0,57043.0,1.01850685]
[1725527339296,1.58127718,57044.0,57043.0,1.03496919]
[1725527341685,1.93188318,57044.0,57043.0,1.03496919]
[1725527342117,1.93188318,57044.0,57043.0,1.01850685]
[1725527342566,1.93188318,57044.0,57043.0,1.03496918]
[1725527342711,1.93188318,57044.0,57043.0,1.04813897]
[1725527345340,1.93188318,57044.0,57043.0,1.01850685]
[1725527345549,1.58127718,57044.0,57043.0,1.03496915]
[1725527345757,1.58127718,57044.0,57043.0,1.04813899]
[1725527345977,1.30154009,57044.0,57043.0,1.1534662]
[1725527346563,1.30154009,57044.0,57043.0,1.15346637]
[1725527346964,2.00275209,57044.0,57043.0,1.15346637]
[1725527347164,2.00275209,57044.0,57043.0,1.01850685]
[1725527349104,2.00813355,57044.0,57043.0,1.01850685]
[1725527350529,2.00813355,57044.0,57043.0,1.01679]
[1725527351032,2.00813355,57044.0,57043.0,1.09578996]
[1725527351271,1.71912539,57044.0,57043.0,1.01850685]
[1725527351748,1.71912539,57044.0,57043.0,1.09750268]
[1725527353369,1.71912539,57044.0,57043.0,1.01850685]
[1725527362273,1.7427351,57044.0,57043.0,1.01850685]
[1725527362937,1.74391822,57044.0,57043.0,1.01850685]
[1725527363391,1.74391822,57044.0,57043.0,1.09747781]
[1725527364944,1.74391822,57044.0,57043.0,1.01850685]
[1725527366127,1.39331222,57044.0,57043.0,1.01850685]
[1725527368563,1.39331222,57044.0,57043.0,1.09747198]
[1725527369921,1.36970251,57044.0,57043.0,1.09747198]
[1725527370142,1.72030851,57044.0,57043.0,1.09575513]
[1725527370380,1.72030851,57044.0,57043.0,1.01679]
[1725527370601,2.07091451,57044.0,57043.0,1.01679]
[1725527370810,1.72030851,57044.0,57043.0,1.06943312]
[1725527371014,2.07091451,57044.0,57043.0,1.06943312]
[1725527371228,1.72030851,57044.0,57043.0,1.06943312]
[1725527372330,2.07091451,57044.0,57043.0,1.06943312]
[1725527372539,1.72030851,57044.0,57043.0,1.06943312]
[1725527372978,2.24642547,57044.0,57043.0,0.96679]
[1725527373620,2.59703147,57044.0,57043.0,0.96679]
[1725527373851,2.59703147,57044.0,57043.0,0.93879]
[1725527374057,2.59703147,57044.0,57043.0,0.94379]
[1725527374313,2.24642547,57044.0,57043.0,0.94879]
[1725527374747,2.59703147,57044.0,57043.0,0.94879]
[1725527375237,2.59703147,57044.0,57043.0,0.94379]
[1725527375695,2.59703147,57044.0,57043.0,0.93879]
[1725527375935,2.62142961,57044.0,57043.0,0.94179]
[1725527376572,2.62142961,57044.0,57043.0,0.93879]
[1725527377197,2.62142961,57044.0,57043.0,0.94179]
[1725527377402,2.62142961,57044.0,57043.0,0.93879]
[1725527377821,2.62342961,57044.0,57043.0,0.93879]
[1725527380780,2.62342961,57044.0,57041.0,0.00163]
[1725527380781,1.227163,57042.0,57041.0,0.00163]
[1725527380979,1.227163,57042.0,57041.0,0.50163]
[1725527380980,2.07932267,57042.0,57041.0,0.50163]
[1725527381181,2.44642648,57042.0,57041.0,0.50163]
[1725527382052,2.44642648,57042.0,57041.0,0.50263]
[1725527382804,2.44642648,57042.0,57041.0,0.50163]
[1725527383660,2.44642648,57042.0,57041.0,0.50263]
[1725527383883,2.44642648,57042.0,57041.0,0.50163]
[1725527384339,2.45042648,57042.0,57041.0,0.50163]
[1725527384798,2.45070963,57042.0,57041.0,0.50163]
[1725527386754,2.45042648,57042.0,57041.0,0.50259]
[1725527387403,2.80104448,57042.0,57041.0,0.50259]
[1725527388448,2.80132763,57042.0,57041.0,0.50259]
[1725527389719,2.45042648,57042.0,57041.0,0.50259]
[1725527390185,2.35167777,57042.0,57041.0,0.50259]
[1725527391353,2.45042648,57042.0,57041.0,0.50259]
[1725527392072,2.80104448,57042.0,57041.0,0.50259]
[1725527392268,2.45042648,57042.0,57041.0,0.50259]
[1725527392720,2.45070963,57042.0,57041.0,0.50259]
[1725527392906,2.45042648,57042.0,57041.0,0.50259]
[1725527393238,2.80132763,57042.0,57041.0,0.50259]
[1725527394079,2.45042648,57042.0,57041.0,0.50259]
[1725527394886,2.80104448,57042.0,57041.0,0.50259]
[1725527395297,2.45042648,57042.0,57041.0,0.50259]
[1725527395503,2.80104448,57042.0,57041.0,0.50259]
[1725527395714,2.45042648,57042.0,57041.0,0.50259]
[1725527396341,2.47370963,57042.0,57041.0,0.50259]
[1725527396772,2.82432763,57042.0,57041.0,0.50259]
[1725527398888,2.47370963,57042.0,57041.0,0.50259]
[1725527399622,2.47342648,57042.0,57041.0,0.50259]
[1725527400614,2.47370963,57042.0,57041.0,0.50259]
[1725527400852,2.82432763,57042.0,57041.0,0.50259]
[1725527401265,2.47370963,57042.0,57041.0,0.50259]
[1725527402388,2.93432763,57042.0,57041.0,0.00259]
[1725527404962,2.93426274,57042.0,57041.0,0.00259]
[1725527406025,2.93426274,57042.0,57040.0,0.00163]
[1725527406026,2.17939115,57041.0,57040.0,0.00163]
[1725527406262,2.48312003,57041.0,57040.0,0.00163]
[1725527406462,2.49432732,57041.0,57040.0,0.00163]
[1725527407549,2.49832732,57041.0,57040.0,0.00163]
[1725527407961,2.49804417,57041.0,57040.0,0.00163]
[1725527408813,2.59679288,57041.0,57040.0,0.00163]
[1725527411512,2.59679288,57041.0,57040.0,0.08928241]
[1725527412794,2.59707603,57041.0,57040.0,0.08928241]
[1725527413415,2.59679288,57041.0,57040.0,0.08928241]
[1725527413615,2.48804417,57041.0,57040.0,0.08928241]
[1725527413829,2.46504417,57041.0,57040.0,0.08928241]
[1725527414884,2.56379288,57041.0,57040.0,0.08928241]
[1725527416609,1.07249617,57041.0,57040.0,0.08928241]
[1725527416825,1.07249617,57041.0,57040.0,0.43928241]
[1725527417267,1.07249617,57041.0,57040.0,0.63488241]
[1725527417741,1.17124488,57041.0,57040.0,0.63488241]
[1725527417966,0.19573721,57041.0,57040.0,0.63659926]
[1725527418378,0.54636121,57041.0,57040.0,0.63659926]
[1725527418815,0.02042521,57041.0,57040.0,0.63659926]
[1725527419032,0.01642521,57041.0,57040.0,0.63659926]
[1725527419252,0.01642521,57041.0,57040.0,0.81191426]
[1725527419681,0.01642521,57041.0,57040.0,0.64859926]
[1725527419882,0.01642521,57041.0,57040.0,1.21551426]
[1725527420124,0.01642521,57041.0,57040.0,1.04019926]
[1725527420558,0.01347731,57041.0,57040.0,1.04019926]
[1725527421453,0.18878931,57041.0,57040.0,1.04019926]
[1725527424885,0.28753802,57041.0,57040.0,1.04019926]
[1725527425298,0.18878931,57041.0,57040.0,1.04019926]
[1725527426140,0.53941331,57041.0,57040.0,1.04019926]
[1725527427773,0.63816202,57041.0,57040.0,0.46399926]
[1725527429267,0.53941331,57041.0,57040.0,0.46399926]
[1725527429487,0.53941331,57041.0,57040.0,0.98994526]
[1725527429488,0.01347731,57041.0,57040.0,0.98994526]
[1725527429697,0.01347731,57041.0,57040.0,1.04246607]
[1725527429900,0.01347731,57041.0,57040.0,0.98994526]
[1725527430346,0.01347731,57041.0,57040.0,1.04243132]
[1725527431655,0.01347731,57041.0,57040.0,1.04242174]
[1725527432328,0.01347731,57041.0,57040.0,1.39305274]
[1725527432542,0.01347731,57041.0,57040.0,1.34057626]
[1725527432765,0.91291956,57042.0,57041.0,1.02665285]
[1725527433017,2.67091956,57042.0,57041.0,1.02765285]
[1725527433248,2.67091956,57042.0,57041.0,1.80215112]
[1725527433450,2.67091956,57042.0,57041.0,1.88980353]
[1725527435177,2.67091956,57042.0,57041.0,1.89980353]
[1725527435430,2.67523416,57042.0,57041.0,1.91080353]
[1725527436969,2.67523416,57042.0,57041.0,2.26142753]
[1725527437802,2.67523416,57042.0,57041.0,2.80648792]
[1725527438223,2.67523416,57042.0,57041.0,2.79648792]
[1725527438440,2.67523416,57042.0,57041.0,2.84893368]
[1725527438657,2.67523416,57042.0,57041.0,2.86293368]
[1725527438864,2.67523416,57042.0,57041.0,3.01293368]
[1725527439079,2.67523416,57042.0,57041.0,2.96048792]
[1725527439290,2.67523416,57042.0,57041.0,2.98848792]
[1725527439707,2.67523416,57042.0,57041.0,2.97448792]
[1725527440118,2.67523416,57042.0,57041.0,2.98848792]
[1725527440563,2.68629013,57042.0,57041.0,2.98848792]
[1725527441224,2.68710513,57042.0,57041.0,2.98848792]
[1725527442706,2.68710513,57042.0,57041.0,3.04093368]
[1725527443392,2.40653689,57042.0,57041.0,2.98848792]
[1725527444497,2.40653689,57042.0,57041.0,3.00494862]
[1725527444694,2.40653689,57042.0,57041.0,3.00494864]
[1725527444910,2.40653689,57042.0,57041.0,2.65432464]
[1725527448156,2.41166566,57042.0,57041.0,2.63786392]
[1725527448376,2.41166566,57042.0,57041.0,2.65432454]
[1725527448818,2.41166566,57042.0,57041.0,4.06235743]
[1725527449057,2.41166566,57042.0,57041.0,3.8366835]
[1725527449555,2.41166566,57042.0,57041.0,3.82022288]
[1725527449745,2.41166566,57042.0,57041.0,3.83668112]
[1725527449901,2.41166566,57042.0,57041.0,3.82268112]
[1725527450101,2.41166566,57042.0,57041.0,3.80868112]
[1725527450300,2.41166566,57042.0,57041.0,3.82268112]
[1725527450502,2.41166566,57042.0,57041.0,3.56462163]
[1725527451214,2.41166566,57042.0,57041.0,3.48605712]
[1725527451422,2.41166566,57042.0,57041.0,3.56462163]
[1725527451625,2.41166566,57042.0,57041.0,3.56462253]
[1725527451753,2.41166566,57042.0,57041.0,3.56462466]
[1725527452658,2.1596118,57042.0,57041.0,3.48605802]
[1725527453316,2.1596118,57042.0,57041.0,3.56462778]
[1725527454181,2.1596118,57042.0,57041.0,3.73962778]
[1725527454629,2.1596118,57042.0,57041.0,3.56462778]
[1725527454862,2.1596118,57042.0,57041.0,3.54816864]
[1725527456368,2.1596118,57042.0,57041.0,3.46959888]
[1725527460029,2.1596118,57042.0,57041.0,3.661058]
[1725527460443,2.1596118,57042.0,57041.0,3.76585467]
[1725527460882,2.1596118,57042.0,57041.0,3.41485467]
[1725527461060,2.1596118,57042.0,57041.0,3.06425467]
[1725527461314,2.1596118,57042.0,57041.0,3.18348362]
[1725527461548,2.1596118,57042.0,57041.0,2.92982304]
[1725527461765,2.1596118,57042.0,57041.0,3.54464689]
[1725527461977,2.1596118,57042.0,57041.0,3.57075467]
[1725527462206,2.1596118,57042.0,57041.0,3.57087051]
[1725527462416,2.1596118,57042.0,57041.0,3.44949888]
[1725527462839,2.1596118,57042.0,57041.0,3.53424759]
[1725527463041,2.1596118,57042.0,57041.0,3.52024759]
[1725527463245,2.1596118,57042.0,57041.0,3.53424759]
[1725527463459,2.1596118,57042.0,57041.0,3.54824759]
[1725527465111,2.1596118,57042.0,57041.0,3.56470664]
[1725527465337,2.1596118,57042.0,57041.0,3.56633664]
[1725527465828,1.89790233,57042.0,57041.0,3.56633664]
[1725527466306,1.89790233,57042.0,57041.0,3.69755787]
[1725527466746,1.89790233,57042.0,57041.0,3.41318516]
[1725527466961,1.89790233,57042.0,57041.0,3.03643794]
[1725527467184,1.89790233,57042.0,57041.0,2.58082897]
[1725527467803,1.89790233,57042.0,57041.0,2.91499392]
[1725527468010,1.89790233,57042.0,57041.0,2.91745444]
[1725527468679,1.89790233,57042.0,57041.0,2.93062288]
[1725527468908,1.89790233,57042.0,57041.0,2.94462288]
[1725527469143,1.89790233,57042.0,57041.0,2.57753836]
[1725527469386,1.89790233,57042.0,57041.0,1.96806293]
[1725527469864,1.89790233,57042.0,57041.0,1.59670583]
[1725527470085,1.99665104,57042.0,57041.0,1.59670583]
[1725527470303,1.99665104,57042.0,57041.0,1.56707682]
[1725527470728,1.99665104,57042.0,57041.0,1.5670842]
[1725527471426,1.89790233,57042.0,57041.0,1.5670842]
[1725527472470,1.89790233,57042.0,57041.0,1.51455965]
[1725527472711,1.89790233,57042.0,57041.0,1.68955965]
[1725527476031,1.89790233,57042.0,57041.0,1.86487165]
[1725527476729,1.89790233,57042.0,57041.0,2.21549565]
[1725527478700,1.89975256,57042.0,57041.0,2.21549565]
[1725527479174,1.89975256,57042.0,57041.0,2.56611965]
[1725527479661,1.89975256,57042.0,57041.0,2.67124479]
[1725527480854,1.89975256,57042.0,57041.0,2.59575056]
[1725527481556,1.89975256,57042.0,57041.0,2.59575055]
[1725527481976,1.89975256,57042.0,57041.0,2.94637455]
[1725527482187,1.89975256,57042.0,57041.0,3.1054239]
[1725527482407,1.89975256,57042.0,57041.0,2.9304239]
[1725527483923,1.89975256,57042.0,57041.0,1.68987165]
[1725527484515,1.89975256,57042.0,57041.0,1.76872258]
[1725527484718,1.89975256,57042.0,57041.0,1.59341167]
[1725527485037,1.89975256,57042.0,57041.0,1.51455965]
[1725527485266,1.89951994,57042.0,57041.0,1.68987165]
[1725527486963,1.89945544,57042.0,57041.0,1.51455965]
[1725527487374,2.07476444,57042.0,57041.0,1.68955965]
[1725527487598,1.89945544,57042.0,57041.0,1.76840146]
[1725527487804,2.07476444,57042.0,57041.0,1.76840146]
[1725527488263,1.89945544,57042.0,57041.0,1.76840146]
[1725527488495,1.89945544,57042.0,57041.0,1.68955965]
[1725527488743,1.89945544,57042.0,57041.0,1.76840146]
[1725527489607,2.07476444,57042.0,57041.0,1.76840146]
[1725527490022,1.89945544,57042.0,57041.0,1.76840146]
[1725527491187,1.89945544,57042.0,57041.0,1.94370518]
[1725527491459,1.89945544,57042.0,57041.0,1.76839318]
[1725527493011,1.89945544,57042.0,57041.0,1.68955965]
[1725527495410,1.89945544,57042.0,57041.0,1.76839318]
[1725527497391,1.89945544,57042.0,57041.0,1.78156286]
[1725527498681,1.89945544,57042.0,57041.0,1.76839318]
[1725527498860,1.89945544,57042.0,57041.0,1.68955965]
[1725527499317,1.89945544,57042.0,57041.0,1.76839318]
[1725527499951,1.89945544,57042.0,57041.0,1.78156282]
[1725527500413,1.89945544,57042.0,57041.0,1.76839318]
[1725527500619,1.89945544,57042.0,57041.0,1.78156282]
[1725527501456,1.89945544,57042.0,57041.0,1.70272929]
[1725527501676,1.89945544,57042.0,57041.0,1.94372033]
[1725527501853,1.89945544,57042.0,57041.0,1.87804118]
[1725527502081,1.89945544,57042.0,57041.0,2.22866518]
[1725527502289,1.89945544,57042.0,57041.0,1.87804118]
[1725527502498,1.89945544,57042.0,57041.0,2.22866518]
[1725527502716,1.89945544,57042.0,57041.0,1.87804118]
[1725527502932,1.89945544,57042.0,57041.0,2.57928918]
[1725527503139,1.89945544,57042.0,57041.0,2.68440056]
[1725527503352,1.89945544,57042.0,57041.0,2.67123103]
[1725527503565,1.89945544,57042.0,57041.0,2.68440041]
[1725527503777,1.89945544,57042.0,57041.0,2.92991303]
[1725527504015,1.89945544,57042.0,57041.0,2.91674365]